bitfinex/quotes_BTCUSD_20241206
["timestamp","ask_amount","ask_price","bid_price","bid_amount"]
[1733489588313,0.0008651,97860.0,97856.0,0.0122939]
[1733489588549,0.2052391,97860.0,97856.0,0.0122939]
[1733489588783,0.25568541,97860.0,97855.0,0.09172148]
[1733489589029,0.25668541,97860.0,97857.0,0.01229027]
[1733489589262,0.25668541,97860.0,97856.0,0.01229027]
[1733489589263,0.2052391,97860.0,97856.0,0.01229027]
[1733489589483,0.1287,97859.0,97856.0,0.01229027]
[1733489589712,0.1287,97859.0,97847.0,0.2293037]
[1733489589713,0.21750902,97849.0,97848.0,0.09172148]
[1733489589937,0.204407,97844.0,97842.0,0.09172148]
[1733489590154,0.204392,97851.0,97842.0,0.09172148]
[1733489590377,0.204396,97849.0,97842.0,0.09172148]
[1733489590597,0.1287,97859.0,97843.0,0.09172148]
[1733489590598,0.333077,97859.0,97843.0,0.09172148]
[1733489590831,0.0774,97877.0,97851.0,0.023]
[1733489591052,0.09071785,97896.0,97851.0,0.023]
[1733489591053,0.0774,97885.0,97858.0,0.204377]
[1733489591280,0.13607678,97904.0,97858.0,0.204377]
[1733489591281,0.0774,97894.0,97859.0,0.88797122]
[1733489591509,0.2539,97895.0,97859.0,0.88797122]
[1733489591510,0.0496,97895.0,97859.0,1.01251027]
[1733489591757,0.21740502,97899.0,97865.0,0.46424998]
[1733489592016,0.21863489,97899.0,97872.0,0.023]
[1733489592252,0.21740602,97899.0,97878.0,0.204335]
[1733489592470,0.21740602,97899.0,97879.0,0.44465628]
[1733489592471,0.204301,97895.0,97879.0,0.44465628]
[1733489592683,0.42169902,97899.0,97879.0,0.44363479]
[1733489592908,0.2043,97895.0,97879.0,0.44363479]
[1733489593357,0.2043,97895.0,97879.0,0.33403522]
[1733489593601,0.2043,97895.0,97879.0,0.44316984]
[1733489594091,0.408601,97895.0,97879.0,0.3339299]
[1733489594322,0.2043,97895.0,97879.0,0.3339299]
[1733489594551,0.2043,97895.0,97879.0,0.34621649]
[1733489594763,0.2043,97895.0,97879.0,0.68835479]
[1733489595447,0.2043,97895.0,97879.0,0.45745643]
[1733489595687,0.2043,97895.0,97879.0,0.46145643]
[1733489595911,0.2043,97895.0,97879.0,0.45745643]
[1733489596133,0.2043,97895.0,97879.0,0.46145643]
[1733489596570,0.2043,97895.0,97879.0,0.64443797]
[1733489596827,0.2043,97895.0,97879.0,0.64243797]
[1733489597049,0.204309,97891.0,97879.0,0.45945643]
[1733489597282,0.2043,97895.0,97879.0,0.25851143]
[1733489597521,0.2043,97895.0,97879.0,0.12131813]
[1733489597775,0.204309,97891.0,97879.0,0.12131813]
[1733489598035,0.204309,97891.0,97879.0,0.20877692]
[1733489598249,0.204309,97891.0,97879.0,0.21175562]
[1733489598507,0.0018655,97880.0,97879.0,0.21675562]
[1733489598752,0.0018655,97880.0,97879.0,0.01728659]
[1733489599240,0.0018655,97880.0,97879.0,0.02028659]
[1733489599711,0.0008655,97880.0,97879.0,0.01228659]
[1733489599929,0.0008655,97880.0,97879.0,0.01528659]
[1733489600173,0.0008655,97880.0,97879.0,0.003]
[1733489600409,0.0008655,97880.0,97879.0,0.01526373]
[1733489600649,0.0008655,97880.0,97879.0,0.003]
[1733489601331,0.0018655,97880.0,97879.0,0.005]
[1733489601555,0.0018655,97880.0,97879.0,0.11303154]
[1733489602014,0.0018655,97880.0,97879.0,0.12227064]
[1733489602454,0.0018655,97880.0,97879.0,0.12527064]
[1733489603596,0.0018655,97880.0,97879.0,0.0202391]
[1733489604125,0.05558695,97880.0,97879.0,0.008]
[1733489604389,0.0018655,97880.0,97879.0,0.008]
[1733489605804,0.12123993,97880.0,97879.0,0.008]
[1733489606029,0.12200355,97880.0,97879.0,0.008]
[1733489606291,0.20470355,97880.0,97879.0,0.008]
[1733489606535,0.30138889,97873.0,97872.0,3.4e-07]
[1733489606763,0.40642043,97873.0,97872.0,3.4e-07]
[1733489608345,0.40842043,97873.0,97872.0,3.4e-07]
[1733489608981,0.40942043,97873.0,97872.0,3.4e-07]
[1733489610604,0.40742043,97873.0,97872.0,3.4e-07]
[1733489610869,0.50144915,97873.0,97872.0,3.4e-07]
[1733489611322,0.50244915,97873.0,97872.0,3.4e-07]
[1733489611764,0.40942043,97873.0,97872.0,3.4e-07]
[1733489624787,0.40942043,97873.0,97840.0,0.093186]
[1733489624788,0.204409,97843.0,97840.0,0.093186]
[1733489625015,0.00122987,97844.0,97840.0,0.0022712]
[1733489625255,0.27032776,97874.0,97841.0,0.01226298]
[1733489625256,0.204386,97854.0,97841.0,0.01226298]
[1733489625481,0.204375,97860.0,97842.0,0.10503154]
[1733489625696,0.0474,97867.0,97842.0,0.10503154]
[1733489625697,0.204372,97861.0,97843.0,0.00102189]
[1733489625904,0.204356,97869.0,97849.0,0.204396]
[1733489626121,0.0008655,97880.0,97861.0,0.20437]
[1733489626327,0.002,97873.0,97862.0,0.10605321]
[1733489626539,0.204338,97877.0,97862.0,0.11834552]
[1733489627179,0.204346,97874.0,97862.0,0.11834552]
[1733489627414,0.204346,97874.0,97862.0,0.20981232]
[1733489627600,0.204346,97874.0,97870.0,0.0017296]
[1733489628057,0.204338,97877.0,97870.0,0.0017296]
[1733489628058,0.24530095,97873.0,97870.0,0.0017296]
[1733489628270,0.44964795,97873.0,97870.0,0.0017296]
[1733489630446,0.44964795,97873.0,97870.0,0.0037296]
[1733489630661,0.408693,97873.0,97870.0,0.0037296]
[1733489631067,0.408693,97873.0,97870.0,0.0017296]
[1733489631310,0.408693,97873.0,97870.0,0.0037296]
[1733489631719,0.408693,97873.0,97870.0,0.0017296]
[1733489632168,0.408693,97873.0,97870.0,0.0037296]
[1733489632852,0.20435,97871.0,97870.0,0.0037296]
[1733489633505,0.20435,97871.0,97870.0,0.0017296]
[1733489633730,0.20435,97871.0,97870.0,0.0037296]
[1733489634237,0.34849289,97871.0,97870.0,0.0017296]
[1733489634448,0.43148454,97871.0,97870.0,0.0037296]
[1733489634658,0.53651608,97871.0,97870.0,0.0037296]
[1733489634889,0.53651608,97871.0,97870.0,0.0017296]
[1733489635127,0.43048454,97871.0,97870.0,0.0017296]
[1733489636727,0.43448454,97871.0,97870.0,0.0017296]
[1733489636948,0.43348454,97871.0,97870.0,0.0017296]
[1733489637157,0.43548454,97871.0,97870.0,0.0017296]
[1733489637365,0.53551608,97871.0,97870.0,0.0017296]
[1733489637599,0.53751608,97871.0,97870.0,0.0017296]
[1733489637856,0.35349289,97871.0,97870.0,0.0017296]
[1733489638086,0.34849289,97871.0,97870.0,0.0017296]
[1733489638304,0.35149289,97871.0,97870.0,0.0017296]
[1733489638524,0.35249289,97871.0,97870.0,0.0017296]
[1733489639615,0.34949289,97871.0,97870.0,0.0017296]
[1733489639861,0.42738196,97871.0,97870.0,0.0017296]
[1733489640090,0.35049289,97871.0,97870.0,0.0017296]
[1733489640376,0.34849289,97871.0,97870.0,0.0017296]
[1733489640610,0.26716302,97871.0,97870.0,0.0017296]
[1733489640854,0.22046302,97871.0,97870.0,0.0017296]
[1733489641084,0.24450174,97871.0,97870.0,0.0017296]
[1733489641505,0.21746302,97871.0,97870.0,0.0017296]
[1733489642887,0.22046302,97871.0,97870.0,0.0017296]
[1733489643310,0.21946302,97871.0,97870.0,0.0017296]
[1733489643517,0.22146302,97871.0,97870.0,0.0017296]
[1733489643730,0.21846302,97871.0,97870.0,0.0017296]
[1733489644169,0.21946302,97871.0,97870.0,0.0017296]
[1733489644401,0.22046302,97871.0,97870.0,0.0017296]
[1733489645311,0.29296078,97871.0,97870.0,0.0017296]
[1733489645769,0.29096078,97871.0,97870.0,0.0017296]
[1733489646204,0.29296078,97871.0,97870.0,0.0017296]
[1733489646426,0.28996078,97871.0,97870.0,0.0017296]
[1733489646852,0.29096078,97871.0,97870.0,0.0017296]
[1733489647554,0.29096078,97871.0,97870.0,6e-07]
[1733489647768,0.35099289,97871.0,97870.0,6e-07]
[1733489649160,0.34999289,97871.0,97870.0,6e-07]
[1733489649371,0.35099289,97871.0,97870.0,6e-07]
[1733489649617,0.34999289,97871.0,97870.0,6e-07]
[1733489649844,0.35299289,97871.0,97870.0,6e-07]
[1733489650079,0.53521559,97871.0,97870.0,6e-07]
[1733489650302,0.53221559,97871.0,97870.0,6e-07]
[1733489650534,0.53521559,97871.0,97870.0,6e-07]
[1733489650761,0.53321559,97871.0,97870.0,6e-07]
[1733489651195,0.53421559,97871.0,97870.0,6e-07]
[1733489651409,0.53521559,97871.0,97870.0,6e-07]
[1733489652523,0.55345616,97871.0,97870.0,6e-07]
[1733489652735,0.55545616,97871.0,97870.0,6e-07]
[1733489652946,0.55445616,97871.0,97870.0,6e-07]
[1733489653439,0.55845616,97871.0,97870.0,6e-07]
[1733489653666,0.55345616,97871.0,97870.0,6e-07]
[1733489653887,0.55545616,97871.0,97870.0,6e-07]
[1733489654113,0.55245616,97871.0,97870.0,6e-07]
[1733489654345,0.55345616,97871.0,97870.0,6e-07]
[1733489654803,0.55445616,97871.0,97870.0,6e-07]
[1733489655038,0.35199289,97871.0,97870.0,6e-07]
[1733489655258,0.20635,97871.0,97870.0,6e-07]
[1733489655736,0.20435,97871.0,97870.0,6e-07]
[1733489655969,0.20435,97871.0,97870.0,0.01228668]
[1733489655970,0.20735,97871.0,97870.0,0.01228668]
[1733489656197,0.20735,97871.0,97870.0,0.10406343]
[1733489656424,0.20735,97871.0,97870.0,0.01228668]
[1733489656425,0.20435,97871.0,97870.0,0.01228668]
[1733489656640,0.20635,97871.0,97870.0,0.01228668]
[1733489656856,0.20535,97871.0,97870.0,0.01228668]
[1733489657113,0.28517987,97871.0,97870.0,0.01228668]
[1733489657335,0.36799078,97871.0,97870.0,0.01228668]
[1733489657564,0.36799078,97871.0,97870.0,6e-07]
[1733489657793,0.36799078,97871.0,97870.0,0.0020006]
[1733489658008,0.41409078,97871.0,97870.0,0.0020006]
[1733489658227,0.41409078,97871.0,97870.0,6e-07]
[1733489658228,0.51912232,97871.0,97870.0,6e-07]
[1733489658444,0.51912232,97871.0,97870.0,0.0010006]
[1733489658888,0.51912232,97871.0,97870.0,6e-07]
[1733489659111,0.21871389,97861.0,97860.0,4e-07]
[1733489659335,0.46428962,97861.0,97860.0,4e-07]
[1733489660044,0.40154543,97861.0,97860.0,4e-07]
[1733489660274,0.29651389,97861.0,97860.0,4e-07]
[1733489660959,0.29851389,97861.0,97860.0,4e-07]
[1733489661181,0.22048402,97861.0,97860.0,4e-07]
[1733489661427,0.207371,97861.0,97860.0,4e-07]
[1733489661641,0.206371,97861.0,97860.0,4e-07]
[1733489662075,0.206371,97861.0,97858.0,0.09177708]
[1733489662076,0.410743,97861.0,97858.0,0.08177748]
[1733489662296,0.204371,97861.0,97858.0,0.08177748]
[1733489662517,0.204386,97854.0,97851.0,0.18359658]
[1733489662733,0.204386,97854.0,97852.0,0.52238855]
[1733489662943,0.204386,97854.0,97853.0,0.33879197]
[1733489663159,0.204386,97854.0,97852.0,0.18359658]
[1733489663380,0.2044,97848.0,97846.0,0.22944792]
[1733489663606,0.2044,97848.0,97846.0,0.56824193]
[1733489663825,0.2044,97848.0,97847.0,0.52235494]
[1733489664042,0.2044,97848.0,97847.0,0.33879401]
[1733489664258,0.2044,97848.0,97840.0,0.0016898]
[1733489664259,0.2044,97848.0,97846.0,0.13767607]
[1733489664768,0.2044,97848.0,97847.0,0.13767607]
[1733489664982,0.2044,97848.0,97846.0,0.14067607]
[1733489664983,0.26584149,97848.0,97846.0,0.14067607]
[1733489665424,0.26584149,97848.0,97846.0,0.003]
[1733489666520,0.204407,97844.0,97843.0,0.13767607]
[1733489666752,0.204407,97844.0,97840.0,0.18525073]
[1733489666753,0.204407,97844.0,97842.0,0.13767607]
[1733489666970,0.408814,97844.0,97843.0,0.33876002]
[1733489667180,0.408814,97844.0,97842.0,0.13764898]
[1733489667393,0.408814,97844.0,97843.0,0.13764898]
[1733489667615,0.408814,97844.0,97840.0,0.0016898]
[1733489667865,0.47025809,97844.0,97842.0,0.13764469]
[1733489668085,0.47025809,97844.0,97841.0,0.13764469]
[1733489668297,0.47025809,97844.0,97843.0,0.01429522]
[1733489668528,0.47025809,97844.0,97843.0,0.002]
[1733489668760,0.47025809,97844.0,97843.0,0.01429522]
[1733489668983,0.47025809,97844.0,97843.0,0.002]
[1733489669197,0.47025809,97844.0,97843.0,0.01429522]
[1733489669406,0.47125809,97844.0,97843.0,0.01429522]
[1733489669619,0.47025809,97844.0,97841.0,0.13764469]
[1733489669846,0.47025809,97844.0,97843.0,0.01229522]
[1733489669847,0.408814,97844.0,97843.0,0.01229522]
[1733489670071,0.409814,97844.0,97842.0,0.002]
[1733489670294,0.409814,97844.0,97843.0,0.01229522]
[1733489670514,0.001,97844.0,97843.0,0.14032676]
[1733489670725,0.001,97844.0,97843.0,0.21984866]
[1733489670956,0.32836279,97871.0,97857.0,0.023]
[1733489670957,0.00011279,97871.0,97857.0,0.023]
[1733489671195,0.00011279,97871.0,97863.0,0.13758531]
[1733489671423,0.00011279,97871.0,97867.0,0.16058531]
[1733489671688,0.00011279,97871.0,97868.0,0.13758531]
[1733489671910,0.00011279,97871.0,97869.0,0.13758531]
[1733489672128,0.00011279,97871.0,97869.0,0.47615634]
[1733489672639,0.00011279,97871.0,97870.0,0.10401092]
[1733489672869,0.00011279,97871.0,97870.0,0.10401189]
[1733489673079,0.00011279,97871.0,97870.0,0.01229568]
[1733489673502,0.00011279,97871.0,97870.0,0.14987116]
[1733489673727,0.00111279,97871.0,97869.0,0.14257548]
[1733489673938,0.00011279,97871.0,97870.0,0.10400555]
[1733489674158,0.00011279,97871.0,97870.0,0.01229568]
[1733489674367,0.00011279,97871.0,97870.0,0.14987116]
[1733489674793,0.00011279,97871.0,97870.0,0.15187116]
[1733489675465,0.00111279,97871.0,97870.0,0.15687116]
[1733489675698,0.00011279,97871.0,97870.0,0.01429568]
[1733489675908,0.00111279,97871.0,97870.0,0.01929568]
[1733489676148,0.00111279,97871.0,97870.0,0.20070437]
[1733489676379,0.00011279,97871.0,97870.0,0.53724092]
[1733489676601,0.00011279,97871.0,97870.0,0.54224092]
[1733489676602,0.00111279,97871.0,97870.0,0.54224092]
[1733489676812,0.00111279,97871.0,97870.0,0.35583223]
[1733489677254,0.00111279,97871.0,97870.0,0.35883223]
[1733489677530,0.00111279,97871.0,97870.0,0.38183223]
[1733489677731,0.00111279,97871.0,97870.0,0.48386377]
[1733489678367,0.00011279,97871.0,97870.0,0.47886377]
[1733489678818,0.00111279,97871.0,97870.0,0.48286377]
[1733489679049,0.00011279,97871.0,97870.0,0.47886377]
[1733489679265,0.00111279,97871.0,97870.0,0.48586377]
[1733489679692,0.00111279,97871.0,97870.0,0.48286377]
[1733489680184,0.00111279,97871.0,97870.0,0.48586377]
[1733489681314,0.00111279,97871.0,97870.0,0.73592088]
[1733489681576,0.0008655,97880.0,97870.0,0.73592088]
[1733489681577,0.0008655,97880.0,97878.0,0.173]
[1733489681793,0.0008655,97880.0,97879.0,0.67192254]
[1733489682003,0.00096059,97880.0,97879.0,0.68314451]
[1733489682877,0.00096059,97880.0,97879.0,0.35277997]
[1733489683097,0.00096059,97880.0,97879.0,0.01424342]
[1733489683757,0.00096059,97880.0,97879.0,0.01524342]
[1733489684673,0.00096059,97880.0,97879.0,0.003]
[1733489686017,0.00096059,97880.0,97879.0,0.002]
[1733489686229,0.00096059,97880.0,97879.0,0.001]
[1733489686442,0.00096059,97880.0,97879.0,0.003]
[1733489686885,0.00096059,97880.0,97879.0,0.002]
[1733489687104,0.03765269,97880.0,97879.0,0.003]
[1733489687727,0.03765269,97880.0,97879.0,0.001]
[1733489688229,0.05176571,97880.0,97879.0,0.001]
[1733489688462,0.0170671,97880.0,97879.0,0.001]
[1733489688689,0.204333,97879.0,97862.0,0.09155955]
[1733489688924,0.00122987,97872.0,97864.0,0.09155955]
[1733489689208,0.00122987,97872.0,97863.0,0.10379912]
[1733489689462,0.01311302,97877.0,97864.0,0.09155955]
[1733489689707,0.01311302,97877.0,97865.0,0.01223957]
[1733489690348,0.00196059,97880.0,97865.0,0.01223957]
[1733489690349,0.00096059,97880.0,97866.0,0.02402172]
[1733489690564,0.00096059,97880.0,97870.0,0.204352]
[1733489690998,0.00096059,97880.0,97872.0,0.227348]
[1733489691220,0.00096059,97880.0,97873.0,0.0010216]
[1733489691221,0.003,97879.0,97873.0,0.0010216]
[1733489691451,0.00096059,97880.0,97874.0,0.0010216]
[1733489691942,0.00096059,97880.0,97874.0,0.023]
[1733489692178,0.00096059,97880.0,97875.0,0.0122495]
[1733489692400,0.00096059,97880.0,97876.0,0.023]
[1733489692811,0.00096059,97880.0,97876.0,0.0352495]
[1733489694025,0.00096059,97880.0,97877.0,0.204337]
[1733489694481,0.00096059,97880.0,97878.0,0.09151742]
[1733489694713,0.00096059,97880.0,97878.0,0.0122495]
[1733489695391,0.00096059,97880.0,97872.0,0.44665568]
[1733489695392,0.00096059,97880.0,97874.0,0.204344]
[1733489695656,0.00096059,97880.0,97875.0,0.0010216]
[1733489695878,0.00096059,97880.0,97878.0,0.003]
[1733489696347,0.00096059,97880.0,97876.0,0.20434]
[1733489696568,0.00096059,97880.0,97879.0,0.0122495]
[1733489696809,0.00096059,97880.0,97874.0,0.001]
[1733489697053,0.00096059,97880.0,97879.0,0.0122495]
[1733489697281,0.00096059,97880.0,97874.0,0.001]
[1733489697742,0.00096059,97880.0,97875.0,0.0122495]
[1733489698436,0.00096059,97880.0,97879.0,0.003]
[1733489698672,0.00096059,97880.0,97876.0,0.001]
[1733489698919,0.00096059,97880.0,97874.0,0.003]
[1733489699408,0.00096059,97880.0,97875.0,0.005]
[1733489699893,0.00096059,97880.0,97876.0,0.01224475]
[1733489700124,0.00096059,97880.0,97876.0,0.01424475]
[1733489701038,0.00096059,97880.0,97876.0,0.01724475]
[1733489701254,0.00096059,97880.0,97876.0,0.01424475]
[1733489701476,0.00096059,97880.0,97876.0,0.01224475]
[1733489701709,0.00196059,97880.0,97876.0,0.01724475]
[1733489701913,0.00096059,97880.0,97876.0,0.01224475]
[1733489702338,0.00096059,97880.0,97876.0,0.2083606]
[1733489702557,0.00096059,97880.0,97878.0,0.204336]
[1733489703230,0.00096059,97880.0,97879.0,0.14129229]
[1733489704557,0.00196059,97880.0,97879.0,0.14027071]
[1733489704766,0.00096059,97880.0,97879.0,0.01223917]
[1733489705003,0.00096059,97880.0,97879.0,0.01623917]
[1733489705182,0.00096059,97880.0,97879.0,0.004]
[1733489705417,0.00096059,97880.0,97879.0,0.01223917]
[1733489705666,0.00096059,97880.0,97879.0,0.005]
[1733489705667,0.00196059,97880.0,97879.0,0.005]
[1733489705875,0.00196059,97880.0,97879.0,0.007]
[1733489706093,0.00196059,97880.0,97879.0,0.01923548]
[1733489706306,0.00196059,97880.0,97879.0,0.1463513]
[1733489706517,0.00196059,97880.0,97879.0,0.15858678]
[1733489706727,0.00196059,97880.0,97879.0,0.15680243]
[1733489707181,0.00196059,97880.0,97879.0,0.14650424]
[1733489707418,0.00196059,97880.0,97879.0,0.23801876]
[1733489707641,0.00196059,97880.0,97879.0,0.23699719]
[1733489707852,0.00196059,97880.0,97879.0,0.28275445]
[1733489708296,0.00196059,97880.0,97879.0,0.14548267]
[1733489708526,0.00196059,97880.0,97879.0,0.14650418]
[1733489710494,0.00196059,97880.0,97879.0,0.23802834]
[1733489710710,0.00196059,97880.0,97879.0,0.23700683]
[1733489711163,0.00196059,97880.0,97879.0,0.13197529]
[1733489711176,0.08426059,97880.0,97879.0,0.01745113]
[1733489711696,0.14587878,97880.0,97879.0,0.01745113]
[1733489711948,0.14587878,97880.0,97879.0,0.00521565]
[1733489712202,0.1589918,97880.0,97879.0,0.00521565]
[1733489712464,0.26402334,97880.0,97879.0,0.00521565]
[1733489712694,0.34369289,97871.0,97870.0,0.0017294]
[1733489713442,0.44872443,97871.0,97870.0,0.0017294]
[1733489714350,0.44872443,97871.0,97860.0,0.0017294]
[1733489714351,0.34248402,97861.0,97860.0,0.0017294]
[1733489714573,0.44751556,97861.0,97860.0,0.0017294]
[1733489715987,0.45351556,97861.0,97860.0,0.0017294]
[1733489716222,0.44951556,97861.0,97860.0,0.0017294]
[1733489716682,0.50549434,97861.0,97860.0,0.0017294]
[1733489717411,0.50349434,97861.0,97860.0,0.0017294]
[1733489717654,0.51049434,97861.0,97860.0,0.0017294]
[1733489717890,0.50549434,97861.0,97860.0,0.0017294]
[1733489718112,0.50349434,97861.0,97860.0,0.0017294]
[1733489718336,0.50849434,97861.0,97860.0,0.0017294]
[1733489718571,0.50549434,97861.0,97860.0,0.0017294]
[1733489719064,0.50849434,97861.0,97860.0,0.0017294]
[1733489719286,0.50349434,97861.0,97860.0,0.0017294]
[1733489719503,0.51049434,97861.0,97860.0,0.0017294]
[1733489719729,0.35071389,97861.0,97860.0,0.0017294]
[1733489720645,0.34571389,97861.0,97860.0,0.0017294]
[1733489720866,0.34371389,97861.0,97860.0,0.0017294]
[1733489721098,0.34571389,97861.0,97860.0,0.0017294]
[1733489721336,0.34971389,97861.0,97860.0,0.0017294]
[1733489721562,0.34771389,97861.0,97860.0,0.0017294]
[1733489721799,0.4001234,97861.0,97860.0,0.0017294]
[1733489722022,0.4061234,97861.0,97860.0,0.0017294]
[1733489722480,0.4001234,97861.0,97860.0,0.0017294]
[1733489722707,0.4061234,97861.0,97860.0,0.0017294]
[1733489722930,0.51115494,97861.0,97860.0,0.0017294]
[1733489724130,0.50915494,97861.0,97860.0,0.0017294]
[1733489724361,0.51115494,97861.0,97860.0,0.0017294]
[1733489724587,0.50642294,97861.0,97860.0,0.0017294]
[1733489724839,0.50842294,97861.0,97860.0,0.0017294]
[1733489725083,0.50442294,97861.0,97860.0,0.0017294]
[1733489725328,0.50642294,97861.0,97860.0,0.0017294]
[1733489725545,0.51042294,97861.0,97860.0,0.0017294]
[1733489725767,0.50442294,97861.0,97860.0,0.0017294]
[1733489725992,0.50842294,97861.0,97860.0,0.0017294]
[1733489726244,0.50642294,97861.0,97860.0,0.0017294]
[1733489727558,0.50442294,97861.0,97860.0,0.0017294]
[1733489727780,0.51042294,97861.0,97860.0,0.0017294]
[1733489728000,0.50642294,97861.0,97860.0,0.0017294]
[1733489728216,0.50842294,97861.0,97860.0,0.0017294]
[1733489728677,0.51042294,97861.0,97860.0,0.0017294]
[1733489728904,0.52091419,97861.0,97860.0,0.0017294]
[1733489729120,0.51491419,97861.0,97860.0,0.0017294]
[1733489729350,0.52091419,97861.0,97860.0,0.0017294]
[1733489729582,0.52091419,97861.0,97860.0,4e-07]
[1733489729809,0.34735589,97841.0,97840.0,0.0016898]
[1733489730033,0.42297258,97841.0,97840.0,0.0016898]
[1733489731205,0.42303069,97841.0,97840.0,0.0016898]
[1733489732292,0.347414,97841.0,97840.0,0.0016898]
[1733489733449,0.01434289,97840.0,97839.0,8e-07]
[1733489733683,0.20243805,97840.0,97839.0,8e-07]
[1733489733902,0.01311302,97831.0,97830.0,0.0003888]
[1733489734120,0.30107689,97831.0,97830.0,0.0003888]
[1733489734396,0.33118458,97831.0,97830.0,0.0003888]
[1733489735301,0.33218458,97831.0,97830.0,0.0003888]
[1733489735545,0.33218458,97831.0,97830.0,0.0033888]
[1733489736001,0.30207689,97831.0,97830.0,0.0033888]
[1733489736935,0.09764289,97831.0,97830.0,0.0033888]
[1733489737630,0.01411302,97831.0,97830.0,0.0033888]
[1733489737859,0.00222987,97831.0,97830.0,0.0033888]
[1733489738130,0.01534289,97831.0,97830.0,0.0033888]
[1733489738355,0.06543178,97831.0,97830.0,0.0033888]
[1733489738809,0.01411302,97831.0,97830.0,0.0033888]
[1733489739031,0.001,97831.0,97830.0,0.0033888]
[1733489739958,0.01534289,97831.0,97830.0,0.0033888]
[1733489740188,0.01610651,97831.0,97830.0,0.0033888]
[1733489745395,0.01610651,97831.0,97761.0,0.67430718]
[1733489745396,0.00227778,97831.0,97810.0,0.12004812]
[1733489745619,0.001,97831.0,97822.0,0.023]
[1733489745867,0.001,97831.0,97827.0,0.023]
[1733489746099,0.001,97831.0,97828.0,0.00076936]
[1733489746573,0.001,97831.0,97829.0,0.023]
[1733489746819,0.001,97831.0,97830.0,0.00076936]
[1733489747074,5.811e-05,97841.0,97830.0,0.00076936]
[1733489747303,5.811e-05,97841.0,97833.0,0.023]
[1733489747530,5.811e-05,97841.0,97834.0,0.0007692]
[1733489747756,5.811e-05,97841.0,97835.0,0.00076918]
[1733489747983,5.811e-05,97841.0,97836.0,0.00076918]
[1733489748224,5.811e-05,97841.0,97836.0,0.01160165]
[1733489748460,5.811e-05,97841.0,97836.0,0.01083247]
[1733489748687,0.02044631,97840.0,97836.0,0.01083247]
[1733489749170,0.02044631,97840.0,97835.0,0.001]
[1733489749422,0.02044631,97840.0,97837.0,0.01083247]
[1733489749925,0.02044631,97840.0,97835.0,0.00176921]
[1733489749927,0.02044631,97840.0,97838.0,0.01083247]
[1733489750171,5.811e-05,97841.0,97838.0,0.01083247]
[1733489750421,5.811e-05,97841.0,97835.0,0.001]
[1733489750422,5.811e-05,97841.0,97835.0,0.00076918]
[1733489750649,5.811e-05,97841.0,97839.0,0.01083247]
[1733489750871,5.811e-05,97841.0,97836.0,0.005]
[1733489751097,5.811e-05,97841.0,97836.0,0.002]
[1733489751352,5.811e-05,97841.0,97840.0,0.01082323]
[1733489751605,0.02181632,97841.0,97838.0,0.002]
[1733489751835,5.811e-05,97841.0,97838.0,0.002]
[1733489752069,5.811e-05,97841.0,97836.0,0.004]
[1733489752329,5.811e-05,97841.0,97836.0,0.006]
[1733489752564,5.811e-05,97841.0,97839.0,0.01082323]
[1733489752812,5.811e-05,97841.0,97836.0,0.006]
[1733489753029,5.811e-05,97841.0,97840.0,0.01082323]
[1733489753250,5.811e-05,97841.0,97836.0,0.002]
[1733489753491,5.811e-05,97841.0,97833.0,0.00076924]
[1733489753748,5.811e-05,97841.0,97840.0,0.001]
[1733489754419,5.811e-05,97841.0,97835.0,0.00076921]
[1733489754864,5.811e-05,97841.0,97836.0,0.01082323]
[1733489755133,5.811e-05,97841.0,97836.0,0.01159241]
[1733489755357,5.811e-05,97841.0,97840.0,0.002]
[1733489756098,5.811e-05,97841.0,97840.0,0.01282323]
[1733489756591,5.811e-05,97841.0,97840.0,0.01082323]
[1733489756832,0.204415,97840.0,97837.0,0.0913873]
[1733489757537,0.204415,97840.0,97839.0,0.0913873]
[1733489757762,0.24661431,97840.0,97839.0,0.0913873]
[1733489758003,0.24661431,97840.0,97837.0,0.13708096]
[1733489758004,0.00122987,97839.0,97838.0,0.0913873]
[1733489758230,0.21876189,97838.0,97837.0,0.003]
[1733489758460,0.39979343,97838.0,97837.0,0.003]
[1733489758687,0.49083983,97838.0,97837.0,0.003]
[1733489758953,0.48542271,97838.0,97837.0,0.004]
[1733489759183,0.48542271,97838.0,97837.0,0.003]
[1733489759652,0.28519096,97838.0,97820.0,0.0913873]
[1733489759887,0.204434,97831.0,97820.0,0.0913873]
[1733489760353,0.21754702,97831.0,97820.0,0.0913873]
[1733489761271,0.21854702,97831.0,97830.0,0.0057296]
[1733489761946,0.21854702,97831.0,97830.0,0.0077296]
[1733489764644,0.205434,97831.0,97830.0,0.0077296]
[1733489765093,0.001,97831.0,97830.0,0.0077296]
[1733489765807,0.001,97831.0,97830.0,0.01787987]
[1733489766030,0.001,97831.0,97830.0,0.0077296]
[1733489766257,0.001,97831.0,97830.0,0.01787987]
[1733489766519,0.001,97831.0,97830.0,0.0077296]
[1733489766754,0.001,97831.0,97830.0,0.01787987]
[1733489766978,0.001,97831.0,97830.0,0.0077296]
[1733489767222,0.001,97831.0,97830.0,0.01787987]
[1733489767446,0.001,97831.0,97830.0,0.09945029]
[1733489767693,0.001,97831.0,97830.0,0.35651841]
[1733489768837,0.001,97831.0,97830.0,0.58582015]
[1733489769107,0.001,97831.0,97830.0,0.35651841]
[1733489770067,0.0008653,97840.0,97830.0,0.35651841]
[1733489770299,0.0008653,97840.0,97839.0,0.18348419]
[1733489770523,0.0008653,97840.0,97837.0,0.56799377]
[1733489770755,0.0008653,97840.0,97838.0,0.33863854]
[1733489771006,0.0008653,97840.0,97839.0,0.33866133]
[1733489771457,0.0008653,97840.0,97837.0,0.204419]
[1733489771695,0.0008653,97840.0,97839.0,0.01015323]
[1733489771914,0.0008653,97840.0,97839.0,0.2281862]
[1733489772134,0.0008653,97840.0,97839.0,0.227417]
[1733489772357,0.0008653,97840.0,97839.0,0.34260177]
[1733489772615,0.0008653,97840.0,97839.0,0.83125028]
[1733489772903,0.0008648,97860.0,97859.0,0.204375]
[1733489773147,0.0008648,97860.0,97859.0,0.227375]
[1733489773365,0.0008648,97860.0,97859.0,0.34255977]
[1733489773584,0.0008648,97860.0,97859.0,0.68120828]
[1733489773825,0.0008648,97860.0,97859.0,0.34255977]
[1733489774071,0.0008648,97860.0,97859.0,0.68099832]
[1733489774315,0.0008648,97860.0,97859.0,0.68299832]
[1733489774779,0.0008648,97860.0,97859.0,0.65999832]
[1733489775050,0.0008648,97860.0,97859.0,0.53388982]
[1733489775271,0.0008648,97860.0,97859.0,0.35059178]
[1733489775272,0.2052378,97860.0,97859.0,0.35059178]
[1733489775499,0.2052378,97860.0,97859.0,0.01215323]
[1733489775733,0.2052378,97860.0,97859.0,0.54161085]